lending/lending_fUSD_20250411
["ID","MTS","AMOUNT","RATE_DAILY","PERIOD"]
[357696762,1744337442957,-0.88616799,0.0002,2]
[357696763,1744337442968,-7739.89549908,0.0002,2]
[357696764,1744337443086,-400789.45471459,0.0002,2]
[357696765,1744337443107,-800.97413474,0.0002,2]
[357696766,1744337443118,-658.37860201,0.0002,2]
[357696775,1744337445981,-5843.01011153,0.0002,2]
[357696776,1744337445992,-2420.29120078,0.0002,2]
[357696785,1744338426132,-1283.96585689,0.00018905,2]
[357696786,1744338429104,-890.31090311,0.00018905,2]
[357696787,1744338429126,-250.0,0.00019,2]
[357696788,1744338429146,-11386.56053764,0.00019,2]
[357696789,1744338432088,-1990.83205083,0.00019,2]
[357696809,1744338632104,-6623.34438157,0.00018999,2]
[357696810,1744338632117,-1847.06496742,0.00018999,2]
[357696811,1744338632130,-1057.09287563,0.00018999,2]
[357696812,1744338632141,-1076.81522866,0.00018999,2]
[357696857,1744338638311,-557040.07201063,0.00018999,2]
[357696858,1744338638323,-6201.14310309,0.00018999,2]
[357696859,1744338638332,-25218.93723712,0.00019,2]
[357696860,1744338638341,-197.19715039,0.00019,2]
[357696861,1744338638350,-1000.0,0.0001902,2]
[357696862,1744338638359,-900.031,0.000196,2]
[357696863,1744338638368,-1166.93,0.00019738,2]
[357696864,1744338638377,-200.0,0.00019899,7]
[357696865,1744338638386,-1065.2383,0.000199,2]
[357696866,1744338638395,-4846.12064065,0.000199,2]
[357696867,1744338638404,-169.66755682,0.000199,2]
[357696868,1744338638413,-173.069967,0.000199,2]
[357696869,1744338638423,-470.96143244,0.000199,2]
[357696870,1744338638432,-7962.97031604,0.000199,2]
[357696872,1744338638441,-2000.0,0.00019927,2]
[357696874,1744338638451,-511.80368399,0.00019973,2]
[357696875,1744338638460,-162.40053575,0.00019973,2]
[357696876,1744338638470,-160.91206552,0.00019973,2]
[357696877,1744338638480,-449.91685965,0.00019973,2]
[357696878,1744338638489,-500.0,0.00019973,2]
[357696879,1744338638499,-153.89250727,0.00019973,2]
[357696881,1744338638509,-546.7645052,0.00019986,2]
[357696882,1744338638522,-247.9340757,0.00019986,2]
[357696883,1744338638532,-79037.20295532,0.00019998,2]
[357696884,1744338638544,-151.0,0.00019999,2]
[357696885,1744338638554,-2193.15,0.00019999,2]
[357696886,1744338638564,-2193.15,0.00019999,2]
[357696887,1744338638574,-2193.15,0.00019999,2]
[357696888,1744338638584,-2193.15,0.00019999,2]
[357696889,1744338638594,-2193.15,0.00019999,2]
[357696890,1744338638603,-2193.15,0.00019999,2]
[357696891,1744338638612,-2193.15,0.00019999,2]
[357696892,1744338638621,-2193.15,0.00019999,2]
[357696893,1744338638630,-2193.15,0.00019999,2]
[357696894,1744338638640,-2193.15,0.00019999,2]
[357696895,1744338638648,-2193.15,0.00019999,2]
[357696896,1744338638657,-2193.15,0.00019999,2]
[357696897,1744338638666,-2193.15,0.00019999,2]
[357696898,1744338638675,-2193.15,0.00019999,2]
[357696899,1744338638685,-2193.15,0.00019999,2]
[357696900,1744338638926,-2193.15,0.00019999,2]
[357696901,1744338638936,-929515.25010557,0.0002,2]
[357696904,1744338640448,-315.148819,0.00018904,2]
[357696905,1744338640457,-224.37599815,0.0002,2]
[357696906,1744338640543,-40312.042204,0.0002,2]
[357696907,1744338640554,-594.96847343,0.0002,2]
[357696908,1744338640573,-685.51729998,0.0002,2]
[357696921,1744338643170,-746.61741501,0.0002,2]
[357696936,1744339532992,-214.6347184,0.00017512,2]
[357696938,1744339615295,-885.75643577,0.00017313,2]
[357696939,1744339634108,-385.46462823,0.00017313,2]
[357696940,1744339634129,-1150.90336526,0.000174,2]
[357696941,1744339646497,-151.28,0.000172,2]
[357696942,1744339649135,-7957.72,0.000172,2]
[357696943,1744339649155,-1436.67687886,0.000175,2]
[357696944,1744339649176,-800.33847587,0.0001793,2]
[357696945,1744339651087,-636.33840298,0.0001793,2]
[357696946,1744339651107,-61.64869109,0.00018,3]
[357696947,1744339755086,-3882.57825988,0.000178,3]
[357696948,1744339755122,-1615.42174012,0.000178,3]
[357696949,1744339800964,-931.25352072,0.0001803,2]
[357696952,1744339832793,-177.32647928,0.0001803,2]
[357696953,1744339832803,-666.35127159,0.000182,5]
[357696954,1744339832814,-905.30046926,0.000182,5]
[357696956,1744339838144,150.0,0.00027,120]
[357696957,1744339838206,-1414.7377517,0.000182,5]
[357696958,1744339838217,-958.776191,0.000182,5]
[357696959,1744339838358,-1613.83431645,0.000182,5]
[357696960,1744339838368,-250.0,0.00018448,2]
[357696961,1744339838377,-200.0,0.00018493,7]
[357696962,1744339838386,-159.42,0.00018568,2]
[357696963,1744339838395,-1230.34388255,0.0001858,2]
[357696964,1744339838471,-769.65611745,0.0001858,2]
[357696965,1744339838481,-612.03,0.0001859,2]
[357696966,1744339838490,-300.0,0.00018596,2]
[357696967,1744339838499,-1238.41304305,0.00018597,2]
[357696968,1744339838511,-2903.69999947,0.00018597,2]
[357696969,1744339838523,-692.74999987,0.00018597,2]
[357696970,1744339838544,-19065.13695761,0.00018597,2]
[357696972,1744339838553,-1000.0,0.00018611,2]
[357696974,1744339838563,-3382.21189664,0.0001889,2]
[357696976,1744339838572,-250.0,0.00019,2]
[357696978,1744339838581,-303.65402203,0.00019,2]
[357696980,1744339838591,-1720.96,0.00019316,2]
[357696981,1744339838600,-213.88,0.00019369,2]
[357696983,1744339838609,-213.88,0.00019375,2]
[357696985,1744339838618,-213.88,0.0001938,2]
[357696986,1744339838814,-213.88,0.00019385,2]
[357696987,1744339838831,-213.88,0.0001939,2]
[357696988,1744339838840,-213.88,0.00019395,2]
[357696989,1744339838850,-500.0,0.000194,7]
[357696990,1744339838859,-213.88,0.000194,2]
[357696991,1744339838867,-213.88,0.00019405,2]
[357696992,1744339838877,-213.88,0.0001941,2]
[357696993,1744339838886,-213.88,0.00019415,2]
[357696994,1744339838899,-213.88,0.0001942,2]
[357696995,1744339838908,-213.88,0.00019425,2]
[357696996,1744339838917,-213.88,0.00019431,2]
[357696997,1744339838926,-213.88,0.00019436,2]
[357696998,1744339838937,-213.88,0.00019441,2]
[357696999,1744339838946,-213.88,0.00019446,2]
[357697000,1744339838956,-213.88,0.00019451,2]
[357697001,1744339838966,-213.88,0.00019456,2]
[357697002,1744339838976,-213.88,0.00019461,2]
[357697003,1744339838985,-213.88,0.00019466,2]
[357697004,1744339838995,-1000.0,0.000195,7]
[357697005,1744339839004,-200.0,0.00019536,2]
[357697006,1744339839013,-1500.0,0.000196,7]
[357697007,1744339839023,-200.0,0.0001961,2]
[357697008,1744339839032,-2100.0,0.000197,7]
[357697009,1744339839042,-2600.0,0.000198,7]
[357697010,1744339839051,-159.42,0.00019894,2]
[357697011,1744339839060,-1192.7901,0.000199,2]
[357697012,1744339839070,-500.0,0.000199,7]
[357697013,1744339839080,-173.069967,0.000199,2]
[357697014,1744339839090,-2500.0,0.000199,2]
[357697015,1744339839099,-7962.97031604,0.000199,2]
[357697016,1744339839109,-150.0,0.00019954,2]
[357697017,1744339839119,-511.80368399,0.00019973,2]
[357697018,1744339839128,-449.91685965,0.00019973,2]
[357697019,1744339839138,-160.91206552,0.00019973,2]
[357697020,1744339839147,-162.40053575,0.00019973,2]
[357697021,1744339839157,-319.71579342,0.00019973,2]
[357697022,1744339839167,-500.0,0.00019973,2]
[357697023,1744339839176,-153.89250727,0.00019973,2]
[357697024,1744339839186,-720.024,0.00019973,2]
[357697025,1744339839195,-557.1421801,0.00019986,2]
[357697026,1744339839204,-6609.6916505,0.00019986,2]
[357697027,1744339839214,-794.6985813,0.00019986,2]
[357697028,1744339839223,-151.0,0.00019999,2]
[357697029,1744339839233,-1256.39055688,0.00019999,2]
[357697030,1744339839242,-2193.15,0.00019999,2]
[357697031,1744339839252,-2193.15,0.00019999,2]
[357697032,1744339839261,-2193.15,0.00019999,2]
[357697033,1744339839271,-2193.15,0.00019999,2]
[357697034,1744339839280,-2193.15,0.00019999,2]
[357697035,1744339839289,-2193.15,0.00019999,2]
[357697036,1744339839298,-2193.15,0.00019999,2]
[357697037,1744339839308,-2193.15,0.00019999,2]
[357697038,1744339839317,-2193.15,0.00019999,2]
[357697039,1744339839327,-2193.15,0.00019999,2]
[357697040,1744339839337,-2193.15,0.00019999,2]
[357697041,1744339839346,-2193.15,0.00019999,2]
[357697042,1744339839356,-2193.15,0.00019999,2]
[357697043,1744339839365,-2193.15,0.00019999,2]
[357697044,1744339839374,-2193.15,0.00019999,2]
[357697045,1744339839384,-2193.15,0.00019999,2]
[357697046,1744339839393,-2193.15,0.00019999,2]
[357697047,1744339839402,-2193.15,0.00019999,2]
[357697048,1744339839411,-2193.15,0.00019999,2]
[357697049,1744339839420,-2193.15,0.00019999,2]
[357697050,1744339839430,-2193.15,0.00019999,2]
[357697051,1744339839439,-2193.15,0.00019999,2]
[357697052,1744339839448,-2193.15,0.00019999,2]
[357697053,1744339839458,-2193.38734216,0.00019999,2]
[357697054,1744339839467,-933006.6834932,0.0002,2]
[357697055,1744339839477,-49371.82148846,0.0002,2]
[357697056,1744339839564,263.98847,0.000323,120]
[357697063,1744339840723,-340.778702,0.00019623,2]
[357697064,1744339840732,-340.7787021,0.00019918,2]
[357697065,1744339840742,-79911.88822226,0.0002,2]
[357697066,1744339840793,-482014.25029766,0.0002,2]
[357697067,1744339840864,-1545.24369994,0.0002,2]
[357697113,1744339843238,-814.98980894,0.0002,2]
[357697117,1744339846188,-1546.9721194,0.0002,2]
[357697118,1744339846200,-1086.1368,0.0002,2]
[357697119,1744339846211,-750.08009723,0.0002,2]
[357697120,1744339846273,-2680.70092809,0.0002,2]
[357697121,1744339846424,-1808.15187881,0.0002,2]
[357697152,1744339868590,171.72,0.00016928,2]
[357697155,1744340830143,-1858.09232398,0.00018327,2]
[357697156,1744340831086,-2983.02201765,0.00018327,2]
[357697157,1744340844610,348.0,0.00033,120]
[357697158,1744340849790,3474.82769832,0.00033,120]
[357697159,1744340852124,-3051.52565837,0.00018327,2]
[357697160,1744340852146,-1000.0,0.00018371,2]
[357697161,1744340852168,-717.54575763,0.00018696,2]
[357697162,1744340852189,-1250.17,0.00018791,2]
[357697163,1744340852212,-1250.17,0.00018796,2]
[357697164,1744340852233,-1250.17,0.00018801,2]
[357697165,1744340852254,-1250.17,0.00018805,2]
[357697166,1744340852276,-1250.17,0.0001881,2]
[357697167,1744340852299,-540.74489994,0.00018815,2]
[357697169,1744341032343,-159.42,0.00018393,2]
[357697170,1744341032355,-500.0,0.00018399,2]
[357697171,1744341032364,-174.54734728,0.00018725,2]
[357697172,1744341032374,-709.42510006,0.00018815,2]
[357697173,1744341032385,-1250.17,0.0001882,2]
[357697174,1744341032394,-1250.17,0.00018825,2]
[357697175,1744341032403,-1250.17,0.0001883,2]
[357697176,1744341032412,-1250.17,0.00018835,2]
[357697177,1744341032422,-1250.17,0.0001884,2]
[357697178,1744341032431,-1250.17,0.00018845,2]
[357697179,1744341032441,-1250.17,0.0001885,2]
[357697180,1744341032450,-200.0,0.00018851,7]
[357697181,1744341032459,-1250.17,0.00018855,2]
[357697182,1744341032469,-1250.17,0.0001886,2]
[357697183,1744341032478,-1250.17,0.00018865,2]
[357697184,1744341032488,-1250.17,0.0001887,2]
[357697185,1744341032498,-1250.17,0.00018874,2]
[357697186,1744341032507,-1720.96,0.00018876,2]
[357697187,1744341032517,-1250.17,0.00018879,2]
[357697188,1744341032526,-1250.17,0.00018884,2]
[357697189,1744341032536,-250.0,0.00018891,2]
[357697190,1744341032545,-250.0,0.00018929,2]
[357697191,1744341032554,-186.48,0.00018929,2]
[357697192,1744341032564,-200.0,0.00018929,2]
[357697193,1744341032573,-3382.21189664,0.00018941,2]
[357697194,1744341032582,-23900.0,0.00018951,2]
[357697195,1744341032591,-1192.83,0.00019261,2]
[357697196,1744341032601,-850.0,0.00019261,2]
[357697197,1744341032610,-174.54734728,0.00019376,2]
[357697198,1744341032621,-1003.44844119,0.00019399,2]
[357697199,1744341032632,-500.0,0.000194,7]
[357697201,1744341032644,-568.15828639,0.00019476,2]
[357697203,1744341032654,-220.91818563,0.00019476,2]
[357697205,1744341032663,-5414.72581769,0.00019477,2]
[357697207,1744341032679,-7994.84750001,0.00019477,2]
[357697208,1744341032857,-331.44689082,0.00019477,2]
[357697209,1744341032885,-17381.32622928,0.00019477,2]
[357697210,1744341032896,-10293.66191504,0.00019477,2]
[357697211,1744341032906,-5135.36,0.00019477,2]
[357697212,1744341032915,-1000.0,0.000195,7]
[357697213,1744341032925,-1500.0,0.000196,7]
[357697214,1744341032935,-2100.0,0.000197,7]
[357697215,1744341032944,-529.87552747,0.000198,2]
[357697216,1744341032954,-268.929,0.000198,2]
[357697217,1744341032963,-1864.9947,0.000198,2]
[357697218,1744341032972,-2600.0,0.000198,7]
[357697219,1744341032982,-529.87552747,0.00019811,2]
[357697220,1744341032991,-529.87552747,0.00019822,2]
[357697221,1744341033001,-529.87552747,0.00019833,2]
[357697222,1744341033011,-529.87552747,0.00019844,2]
[357697223,1744341033020,-529.87552747,0.00019856,2]
[357697224,1744341033030,-529.87552747,0.00019867,2]
[357697225,1744341033041,-1192.7901,0.00019873,2]
[357697226,1744341033051,-529.87552747,0.00019878,2]
[357697227,1744341033061,-181.36855766,0.00019886,2]
[357697228,1744341033071,-544.6655,0.00019886,2]
[357697229,1744341033080,-529.87552747,0.00019889,2]
[357697230,1744341033090,-668.8623,0.000199,2]
[357697231,1744341033100,-10891.28531007,0.000199,2]
[357697232,1744341033112,-662.69352117,0.000199,2]
[357697234,1744341038308,-840.25358815,0.000199,2]
[357697235,1744341038320,-1416.61649412,0.000199,2]
[357697236,1744341038466,-1338.02778416,0.000199,2]
[357697237,1744341038478,-4467.24045872,0.000199,2]
[357697238,1744341038573,-6596.2816,0.00018691,2]
[357697239,1744341038584,-18166.79514361,0.000199,2]
[357697240,1744341038593,-1819.5339,0.000199,2]
[357697241,1744341038603,-2077.9713,0.000199,2]
[357697242,1744341038612,-1725.3291,0.000199,2]
[357697243,1744341038622,-7488.0213,0.000199,2]
[357697244,1744341038631,-919.9185,0.000199,2]
[357697245,1744341038641,-1614.8341,0.000199,2]
[357697246,1744341038651,-3070.0724,0.000199,2]
[357697247,1744341038660,-151.96455846,0.000199,2]
[357697248,1744341038670,-529.87552747,0.000199,2]
[357697249,1744341038679,-7328.82132519,0.000199,2]
[357697250,1744341038688,-500.0,0.000199,7]
[357697251,1744341038698,-168.82619153,0.000199,2]
[357697252,1744341038707,-1683.64961332,0.000199,2]
[357697253,1744341038716,-173.11891597,0.000199,2]
[357697254,1744341038726,-7962.97031604,0.000199,2]
[357697255,1744341038735,-159.42,0.00019926,2]
[357697256,1744341038744,-42775.0,0.00019973,2]
[357697257,1744341038754,-1000.0,0.00019973,2]
[357697258,1744341038763,-1000.0,0.00019973,2]
[357697259,1744341038772,-1000.0,0.00019973,2]
[357697260,1744341038781,-1000.0,0.00019973,2]
[357697261,1744341038790,-1000.0,0.00019973,2]
[357697262,1744341038799,-1000.0,0.00019973,2]
[357697263,1744341038809,-1000.0,0.00019973,2]
[357697264,1744341038818,-1000.0,0.00019973,2]
[357697265,1744341038827,-1000.0,0.00019973,2]
[357697266,1744341038836,-1000.0,0.00019973,2]
[357697268,1744341038845,-1000.0,0.00019973,2]
[357697269,1744341038854,-1000.0,0.00019973,2]
[357697270,1744341038864,-1000.0,0.00019973,2]
[357697271,1744341038873,-1000.0,0.00019973,2]
[357697272,1744341038882,-1000.0,0.00019973,2]
[357697273,1744341038892,-1000.0,0.00019973,2]
[357697274,1744341038902,-1000.0,0.00019973,2]
[357697275,1744341038911,-1000.0,0.00019973,2]
[357697276,1744341038919,-183.03106805,0.00019973,2]
[357697277,1744341038929,-500.0,0.00019973,2]
[357697278,1744341038938,-278.39667092,0.00019973,2]
[357697279,1744341038948,-309.0,0.00019973,2]
[357697280,1744341038957,-153.89250727,0.00019973,2]
[357697281,1744341038966,-449.91685965,0.00019973,2]
[357697282,1744341038976,-319.71579342,0.00019973,2]
[357697283,1744341038985,-161.37727217,0.00019973,2]
[357697284,1744341038994,-181.60656161,0.00019973,2]
[357697285,1744341039003,-162.40053575,0.00019973,2]
[357697286,1744341039012,-410.10144444,0.00019973,2]
[357697287,1744341039021,-500.0,0.00019973,2]
[357697288,1744341039031,-160.91206552,0.00019973,2]
[357697289,1744341039041,-152.08195028,0.00019973,2]
[357697290,1744341039050,-156.15517895,0.00019973,2]
[357697291,1744341039059,-502.44315102,0.00019973,2]
[357697292,1744341039069,-153.16556973,0.00019973,2]
[357697293,1744341039078,-190.26767896,0.00019985,2]
[357697294,1744341039088,-171.73164079,0.00019985,2]
[357697295,1744341039097,-170.94818241,0.00019985,2]
[357697296,1744341039107,-6039.9335108,0.00019986,2]
[357697297,1744341039116,-1518.1343232,0.00019986,2]
[357697298,1744341039125,-24528.1894116,0.00019986,2]
[357697299,1744341039134,-1305.9566999,0.00019986,2]
[357697300,1744341039143,-1000.0,0.00019986,2]
[357697301,1744341039152,-1000.0,0.00019986,2]
[357697302,1744341039161,-1000.0,0.00019986,2]
[357697303,1744341039170,-1000.0,0.00019986,2]
[357697304,1744341039179,-1000.0,0.00019986,2]
[357697305,1744341039188,-1000.0,0.00019986,2]
[357697306,1744341039196,-1000.0,0.00019986,2]
[357697307,1744341039205,-1000.0,0.00019986,2]
[357697308,1744341039214,-1000.0,0.00019986,2]
[357697309,1744341039223,-1000.0,0.00019986,2]
[357697310,1744341039232,-14107.69533664,0.00019989,2]
[357697311,1744341039241,-151.0,0.00019999,2]
[357697312,1744341039250,-1096.57,0.00019999,2]
[357697313,1744341039259,-1096.57,0.00019999,2]
[357697314,1744341039269,-1096.57,0.00019999,2]
[357697315,1744341039287,-1096.57,0.00019999,2]
[357697316,1744341039296,-1096.57,0.00019999,2]
[357697317,1744341039305,-1096.57,0.00019999,2]
[357697318,1744341039315,-1096.57,0.00019999,2]
[357697319,1744341039324,-1096.57,0.00019999,2]
[357697320,1744341039333,-1096.57,0.00019999,2]
[357697321,1744341039342,-1096.57,0.00019999,2]
[357697322,1744341039352,-1096.57,0.00019999,2]
[357697323,1744341039362,-1096.57,0.00019999,2]
[357697324,1744341039371,-1096.57,0.00019999,2]
[357697325,1744341039380,-1096.57,0.00019999,2]
[357697326,1744341039597,-1096.57,0.00019999,2]
[357697327,1744341039608,-1096.57,0.00019999,2]
[357697328,1744341039617,-1096.57,0.00019999,2]
[357697329,1744341039627,-1096.57,0.00019999,2]
[357697330,1744341039636,-1096.57,0.00019999,2]
[357697331,1744341039645,-1096.57,0.00019999,2]
[357697332,1744341039654,-1096.57,0.00019999,2]
[357697333,1744341039664,-1096.57,0.00019999,2]
[357697335,1744341039672,-1096.57,0.00019999,2]
[357697337,1744341039681,-1096.69,0.00019999,2]
[357697339,1744341039690,-1256.39055688,0.00019999,2]
[357697341,1744341039699,-306175.1254541,0.0002,2]
[357697346,1744341039741,-445970.01328933,0.0002,2]
[357697348,1744341039751,-242.0,0.0002,2]
[357697350,1744341039760,-632822.59375058,0.0002,2]
[357697397,1744341040602,-448.12608553,0.0002,2]
[357697403,1744341040657,-1066.92294918,0.0002,2]
[357697410,1744341040711,-917.89264726,0.0002,2]
[357697485,1744341043328,-160.34,0.00019989,2]
[357697486,1744341043338,-160.34,0.0001999,2]
[357697487,1744341043347,-160.34,0.0001999,2]
[357697488,1744341043356,-160.34,0.0001999,2]
[357697489,1744341043366,-160.34,0.0001999,2]
[357697490,1744341043375,-160.34,0.0001999,2]
[357697491,1744341043384,-160.34,0.0001999,2]
[357697492,1744341043394,-160.34,0.0001999,2]
[357697493,1744341043403,-160.34,0.0001999,2]
[357697494,1744341043412,-2792.63943136,0.0002,2]
[357697495,1744341043438,-1725674.78530782,0.0002,2]
[357697496,1744341043571,-552.1259544,0.0002,2]
[357697497,1744341043584,-600.0,0.0002,2]
[357697498,1744341043604,-323.10744618,0.0002,2]
[357697499,1744341046441,-206.45531181,0.0002,2]
[357697500,1744341046453,-7861.0,0.0002,2]
[357697501,1744341046469,-3191.81532307,0.0002,2]
[357697502,1744341046564,-246480.41176414,0.0002,2]
[357697503,1744341046576,-266779.06442844,0.0002,2]
[357697504,1744341056818,202.34201024,0.00030137,60]
[357697506,1744341367840,505.45765579,0.00032876,120]
[357697507,1744341510964,339.668,0.00032547,120]
[357697508,1744341511014,339.668,0.00032547,120]
[357697509,1744341511090,339.669,0.00032547,120]
[357697510,1744341511156,339.669,0.00032547,120]
[357697511,1744341511217,339.669,0.00032547,120]
[357697512,1744341937351,444.92551776,9e-05,2]
[357697514,1744342025152,-890.310903,0.00018905,2]
[357697515,1744342025173,-300.0,0.00018999,2]
[357697516,1744342025193,-206.0,0.00018999,2]
[357697517,1744342025213,-250.0,0.00019,2]
[357697518,1744342025232,-10784.02728149,0.00019,2]
[357697519,1744342110441,-580.29898971,0.00017236,2]
[357697520,1744342116766,1555.07448224,0.000149,2]
[357697521,1744342116791,1385.73613603,0.000149,2]
[357697522,1744342154102,-490.0,0.00017236,2]
[357697523,1744342173126,-62.88101029,0.00017236,2]
[357697547,1744342231760,-1053.04497241,0.00018983,2]
[357697667,1744342237579,-1242.475,0.00018983,2]
[357697668,1744342237791,-565.04013837,0.00018983,2]
[357697669,1744342237802,-1655.02,0.00018983,2]
[357697670,1744342237813,-19648.41988922,0.00018983,2]
[357697671,1744342237823,-300.0,0.00018999,2]
[357697672,1744342237832,-25821.47049327,0.00019,2]
[357697673,1744342237841,-303.65402203,0.00019,2]
[357697674,1744342237850,-239.87929807,0.00019,2]
[357697675,1744342237859,-1000.0,0.0001902,2]
[357697676,1744342237868,-1256.99,0.00019154,2]
[357697677,1744342237878,-200.0,0.00019207,2]
[357697678,1744342237887,-307.28,0.00019247,2]
[357697679,1744342237896,-1000.0,0.00019255,2]
[357697681,1744342237905,-6341.64,0.00019261,2]
[357697683,1744342237914,-21160.48,0.00019342,2]
[357697684,1744342237923,-200.0,0.00019467,7]
[357697686,1744342237932,-1133.18,0.000195,2]
[357697688,1744342237941,-153.25,0.00019842,2]
[357697690,1744342237950,-153.25,0.00019858,2]
[357697692,1744342237959,-153.25,0.00019875,2]
[357697694,1744342237968,-153.25,0.00019891,2]
[357697696,1744342237977,-1302.8117,0.000199,2]
[357697698,1744342237987,-2671.6724,0.000199,2]
[357697700,1744342237996,-5343.1035,0.000199,2]
[357697702,1744342238005,-377.9554,0.000199,2]
[357697704,1744342238014,-315.6185,0.000199,2]
[357697706,1744342238023,-1360.1493,0.000199,2]
[357697708,1744342238032,-1583.982,0.000199,2]
[357697710,1744342238041,-151.96455844,0.000199,2]
[357697712,1744342238051,-224.3698,0.000199,2]
[357697714,1744342238060,-2500.0,0.000199,2]
[357697716,1744342238069,-168.00013281,0.000199,2]
[357697718,1744342238078,-171.56868898,0.000199,2]
[357697720,1744342238087,-1122.43307556,0.000199,2]
[357697722,1744342238096,-860.48,0.00019903,2]
[357697724,1744342238105,-153.25,0.00019908,2]
[357697726,1744342238114,-153.25,0.00019924,2]
[357697729,1744342238123,-153.25,0.00019941,2]
[357697732,1744342238132,-388.24143044,0.00019963,2]
[357697735,1744342238142,-250.0,0.00019965,2]
[357697738,1744342238151,-514.42692592,0.00019973,2]
[357697739,1744342238161,-547.83968565,0.00019973,2]
[357697741,1744342238170,-500.0,0.00019973,2]
[357697743,1744342238179,-391.54396359,0.00019973,2]
[357697745,1744342238188,-1349.905,0.00019973,2]
[357697747,1744342238197,-5923.7493156,0.00019985,2]
[357697749,1744342238207,-10416.9623764,0.00019986,2]
[357697751,1744342238215,-10416.9623765,0.00019986,2]
[357697753,1744342238225,-1109.2626186,0.00019986,2]
[357697755,1744342238234,-644.7417647,0.00019986,2]
[357697757,1744342238242,-846.7932942,0.00019986,2]
[357697759,1744342238251,-1096.58,0.00019999,2]
[357697761,1744342238260,-1096.58,0.00019999,2]
[357697763,1744342238270,-1096.58,0.00019999,2]
[357697765,1744342238279,-1096.58,0.00019999,2]
[357697767,1744342238288,-1096.58,0.00019999,2]
[357697769,1744342238297,-1096.58,0.00019999,2]
[357697771,1744342238306,-1096.58,0.00019999,2]
[357697773,1744342238315,-1096.58,0.00019999,2]
[357697775,1744342238324,-1096.58,0.00019999,2]
[357697777,1744342238333,-1096.58,0.00019999,2]
[357697778,1744342238342,-1096.58,0.00019999,2]
[357697780,1744342238351,-1096.58,0.00019999,2]
[357697782,1744342238360,-1096.58,0.00019999,2]
[357697784,1744342238369,-1096.58,0.00019999,2]
[357697786,1744342238379,-1096.58,0.00019999,2]
[357697788,1744342238388,-1096.58,0.00019999,2]
[357697790,1744342238397,-1096.58,0.00019999,2]
[357697792,1744342238406,-1096.58,0.00019999,2]
[357697794,1744342238415,-1096.58,0.00019999,2]
[357697796,1744342238424,-1096.58,0.00019999,2]
[357697798,1744342238434,-1096.58,0.00019999,2]
[357697800,1744342238443,-1096.58,0.00019999,2]
[357697802,1744342238452,-1096.58,0.00019999,2]
[357697804,1744342238461,-1096.69734216,0.00019999,2]
[357697805,1744342238470,-500.0,0.00019999,2]
[357697806,1744342238479,-500.0,0.00019999,2]
[357697807,1744342238488,-993.97455656,0.00019999,2]
[357697808,1744342238499,-670582.28939298,0.0002,2]
[357697809,1744342238508,-367.88358766,0.0002,2]
[357697810,1744342238516,-248332.14065057,0.0002,2]
[357697846,1744342239576,-4726.16,0.0002,2]
[357697847,1744342239588,-1269.34331857,0.0002,2]
[357697856,1744342239674,-0.00273775,0.0002,2]
[357697888,1744342239972,-10179.29701166,0.0002,2]
[357697890,1744342239984,-1267.95597507,0.0002,2]
[357697892,1744342239995,-9411.70177327,0.0002,2]
[357697895,1744342240006,-234941.805,0.0002,2]
[357698048,1744342242892,-700.29850783,0.0002,2]
[357698050,1744342242903,-312.856416,0.0002,2]
[357698051,1744342242913,-470.22629265,0.0002,2]
[357698052,1744342242925,-529.96920241,0.0002,2]
[357698053,1744342242935,-134020.18094099,0.0002,2]
[357698056,1744342245606,-268.987887,0.0002,2]